fUSD/lending_fUSD_20251215
["ID","MTS","AMOUNT","RATE_DAILY","PERIOD"]
[398509612,1765766215216,-151.90133529,0.00015755,2]
[398509614,1765766223815,515.0,0.000225,120]
[398509631,1765766262406,195.08,7.785e-05,2]
[398509632,1765766262636,195.08,8.194e-05,2]
[398509635,1765766263138,195.08,8.604e-05,2]
[398509636,1765766263196,195.08,9.014e-05,2]
[398509637,1765766263296,195.08,9.423e-05,2]
[398509638,1765766263502,195.08,9.833e-05,2]
[398509640,1765766263714,195.08,0.00010243,2]
[398509641,1765766263934,195.08,0.00010652,2]
[398509643,1765766264116,195.08,0.00011062,2]
[398509644,1765766264326,195.08,0.00011472,2]
[398509645,1765766264737,195.08,0.00011881,2]
[398509646,1765766264960,195.08,0.00012291,2]
[398509647,1765766265176,195.08,0.00012701,2]
[398509648,1765766265377,195.08,0.00013111,2]
[398509649,1765766265589,195.08,0.0001352,2]
[398509650,1765766265805,195.08,0.0001393,2]
[398509651,1765766266013,195.08,0.0001434,2]
[398509652,1765766266201,195.08,0.00014749,2]
[398509653,1765766266440,195.08,0.00015159,2]
[398509654,1765766266644,195.08,0.00015569,2]
[398509790,1765766379152,150.0,0.00015541,2]
[398509813,1765766424591,-184.55948542,0.00015755,2]
[398509814,1765766425784,-97.44051458,0.00015755,2]
[398509815,1765766425807,-48.09866471,0.00015755,2]
[398509826,1765766468607,-195.0,0.00015778,2]
[398509827,1765766468631,-46.15548898,0.00015798,2]
[398509832,1765766486024,-148.84451102,0.00015798,2]
[398509833,1765766486046,-60.83584593,0.00015799,2]
[398509834,1765766487893,-239.16415407,0.00015799,2]
[398509835,1765766487918,-77.90133529,0.00015799,2]
[398509838,1765766490271,-171.44298355,0.00015799,2]
[398509841,1765766493978,-511.49152709,0.00015799,2]
[398509847,1765766498610,-279.0,0.00015799,2]
[398509849,1765766499909,-160.16415407,0.00015799,2]
[398509850,1765766499932,-34.83584593,0.000158,2]
[398509855,1765766502518,-153.34794041,0.000158,2]
[398509857,1765766504167,-300.0,0.000158,2]
[398509860,1765766506354,-174.66898404,0.000158,2]
[398509862,1765766511027,-166.66000017,0.000158,2]
[398509863,1765766513416,-300.0,0.000158,2]
[398509864,1765766516087,-70.48722945,0.000158,2]
[398509865,1765766516111,-206.2584032,0.000158,2]
[398509878,1765766526860,-300.0,0.000158,2]
[398509882,1765766530214,-226.75071876,0.000158,2]
[398509883,1765766532862,-23.24928124,0.000158,2]
[398509884,1765766532884,-171.75071876,0.00015801,2]
[398509969,1765766709549,150.0,0.00015288,2]
[398509998,1765766740038,150.0,0.00015519,2]
[398510001,1765766742034,611.14,0.00015643,2]
[398510010,1765766772835,159.57,0.00012308,2]
[398510025,1765766813700,-207.87757267,0.000158,2]
[398510077,1765766957610,1000.0,0.00013699,2]
[398510093,1765766987363,3000.0,0.000157,2]
[398510094,1765766998663,2000.0,0.000157,2]
[398510155,1765767033674,-300.0,0.000158,2]
[398510156,1765767033684,-608.55577311,0.000158,2]
[398510157,1765767033695,-326.9999999,0.000158,2]
[398510158,1765767033727,-264.44422699,0.000158,2]
[398510159,1765767033736,-300.0,0.000158,2]
[398510160,1765767033745,-282.0,0.000158,2]
[398510161,1765767033755,-250.0,0.000158,2]
[398510162,1765767033764,-828.24928124,0.00015801,2]
[398510163,1765767033774,-6137.41429826,0.00015801,2]
[398510164,1765767033793,-27332.00310174,0.00015801,2]
[398510166,1765767033802,-500.0,0.000159,2]
[398510167,1765767033811,-500.0,0.000159,2]
[398510168,1765767033824,-500.0,0.000159,2]
[398510169,1765767033834,-500.0,0.00015909,2]
[398510170,1765767033843,-500.0,0.00015909,2]
[398510171,1765767033852,-500.0,0.00015909,2]
[398510172,1765767033861,-512.51905285,0.00015909,2]
[398510173,1765767033871,-170.00143321,0.00015909,2]
[398510174,1765767033880,-521.04088115,0.0001591,2]
[398510175,1765767033888,-296.28,0.00015969,2]
[398510176,1765767033897,-500.0,0.00015999,2]
[398510177,1765767033906,-500.0,0.0001614,2]
[398510178,1765767033916,-1502.0,0.00016149,2]
[398510179,1765767033925,-869.24164202,0.00016149,2]
[398510180,1765767033934,-796.20617884,0.00016149,2]
[398510181,1765767033943,-300.0,0.00016149,2]
[398510182,1765767033952,-500.0,0.00016151,2]
[398510183,1765767033961,-150.0,0.00016151,2]
[398510184,1765767033969,-500.0,0.00016151,2]
[398510185,1765767033978,-500.0,0.00016151,2]
[398510186,1765767033987,-500.0,0.00016151,2]
[398510187,1765767033996,-150.0,0.00016151,2]
[398510188,1765767034006,-150.0,0.00016151,2]
[398510189,1765767034014,-456.0,0.00016151,2]
[398510190,1765767034023,-150.0,0.00016151,2]
[398510191,1765767034033,-150.0,0.00016151,2]
[398510192,1765767034042,-500.0,0.00016151,2]
[398510193,1765767034051,-500.0,0.00016151,2]
[398510194,1765767034061,-150.0,0.00016151,2]
[398510195,1765767034070,-500.0,0.00016151,2]
[398510196,1765767034079,-150.0,0.00016151,2]
[398510197,1765767034088,-150.0,0.00016151,2]
[398510198,1765767034097,-500.0,0.00016151,2]
[398510199,1765767034105,-500.0,0.00016151,2]
[398510200,1765767034114,-150.0,0.00016151,2]
[398510201,1765767034123,-150.88226754,0.00016151,2]
[398510202,1765767034132,-152.89564994,0.00016151,2]
[398510203,1765767034141,-150.0,0.00016151,2]
[398510204,1765767034150,-500.0,0.00016151,2]
[398510205,1765767034160,-1154.8,0.00016225,2]
[398510206,1765767034169,-500.0,0.00016225,2]
[398510207,1765767034178,-500.0,0.00016225,2]
[398510208,1765767034188,-500.0,0.00016225,2]
[398510209,1765767034197,-376.3361989,0.00016225,2]
[398510210,1765767034207,-500.0,0.00016225,2]
[398510211,1765767034216,-500.0,0.00016225,2]
[398510212,1765767034226,-500.0,0.00016225,2]
[398510213,1765767034235,-500.0,0.00016225,2]
[398510214,1765767034244,-500.0,0.00016225,2]
[398510215,1765767034253,-500.0,0.00016225,2]
[398510216,1765767034263,-423.31917631,0.00016225,2]
[398510218,1765767034272,-500.0,0.00016225,2]
[398510219,1765767034282,-500.0,0.00016225,2]
[398510220,1765767034291,-500.0,0.00016225,2]
[398510222,1765767034301,-500.0,0.00016225,2]
[398510223,1765767034311,-211.69293557,0.00016225,2]
[398510224,1765767034321,-500.0,0.00016225,2]
[398510225,1765767034330,-500.0,0.00016225,2]
[398510226,1765767034339,-500.0,0.00016225,2]
[398510227,1765767034348,-500.0,0.00016225,2]
[398510228,1765767034357,-500.0,0.00016225,2]
[398510229,1765767034366,-500.0,0.00016225,2]
[398510230,1765767034375,-500.0,0.00016225,2]
[398510231,1765767034385,-500.0,0.00016225,2]
[398510232,1765767034395,-500.0,0.00016225,2]
[398510233,1765767034404,-500.0,0.00016225,2]
[398510234,1765767034413,-500.0,0.00016225,2]
[398510235,1765767034422,-500.0,0.00016225,2]
[398510236,1765767034431,-500.0,0.00016225,2]
[398510237,1765767034441,-500.0,0.00016225,2]
[398510238,1765767034450,-500.0,0.00016225,2]
[398510239,1765767034460,-500.0,0.00016225,2]
[398510240,1765767034469,-636.21273308,0.00016225,2]
[398510241,1765767034479,-500.0,0.00016225,2]
[398510242,1765767034488,-500.0,0.00016225,2]
[398510243,1765767034497,-500.0,0.00016225,2]
[398510244,1765767034507,-580.08677269,0.00016225,2]
[398510245,1765767034516,-500.0,0.00016225,2]
[398510246,1765767034525,-500.0,0.00016225,2]
[398510247,1765767034535,-500.0,0.00016225,2]
[398510248,1765767034544,-500.0,0.00016225,2]
[398510249,1765767034554,-500.0,0.00016225,2]
[398510250,1765767034563,-500.0,0.00016225,2]
[398510251,1765767034573,-500.0,0.00016225,2]
[398510252,1765767034582,-500.0,0.00016225,2]
[398510253,1765767034591,-500.0,0.00016225,2]
[398510255,1765767034601,-500.0,0.00016225,2]
[398510256,1765767034611,-500.0,0.00016225,2]
[398510257,1765767034620,-500.0,0.00016225,2]
[398510259,1765767034629,-500.0,0.00016225,2]
[398510260,1765767034638,-500.0,0.00016225,2]
[398510261,1765767034648,-500.0,0.00016225,2]
[398510262,1765767034658,-500.0,0.00016225,2]
[398510263,1765767034667,-500.0,0.00016225,2]
[398510264,1765767034675,-500.0,0.00016225,2]
[398510265,1765767034684,-500.0,0.00016225,2]
[398510266,1765767034694,-500.0,0.00016225,2]
[398510267,1765767034703,-500.0,0.00016225,2]
[398510268,1765767034712,-500.0,0.00016225,2]
[398510269,1765767034721,-500.0,0.00016225,2]
[398510270,1765767034730,-500.0,0.00016225,2]
[398510271,1765767034739,-225.91459769,0.00016225,2]
[398510272,1765767034748,-500.0,0.00016225,2]
[398510273,1765767034757,-500.0,0.00016225,2]
[398510274,1765767034766,-500.0,0.00016225,2]
[398510275,1765767034775,-500.0,0.00016225,2]
[398510276,1765767034785,-500.0,0.00016225,2]
[398510277,1765767034799,-500.0,0.00016225,2]
[398510278,1765767034807,-250.0,0.00016225,2]
[398510279,1765767034816,-3964.31,0.00016226,2]
[398510280,1765767034827,-150.99,0.00016226,2]
[398510281,1765767034836,-19999.99,0.00016226,2]
[398510282,1765767034845,-427.63,0.00016226,2]
[398510283,1765767034854,-150.0,0.00016227,2]
[398510284,1765767034864,-500.0,0.00016227,2]
[398510285,1765767034874,-500.0,0.00016227,2]
[398510286,1765767034883,-150.0,0.00016227,2]
[398510287,1765767034892,-500.0,0.00016227,2]
[398510288,1765767034901,-500.0,0.00016236,2]
[398510289,1765767034911,-227.46653215,0.00016237,2]
[398510290,1765767034920,-1224.62,0.00016237,2]
[398510291,1765767034930,-1529.71,0.00016237,2]
[398510292,1765767034939,-500.0,0.00016288,2]
[398510293,1765767034949,-154.80042994,0.00016288,2]
[398510294,1765767034959,-500.0,0.00016288,2]
[398510295,1765767034968,-500.0,0.00016288,2]
[398510296,1765767034977,-557.15734767,0.00016288,2]
[398510297,1765767034987,-456.0,0.00016288,2]
[398510298,1765767034996,-209.90590555,0.00016288,2]
[398510299,1765767035006,-150.79769054,0.00016288,2]
[398510300,1765767035015,-500.0,0.00016288,2]
[398510301,1765767035024,-500.0,0.00016288,2]
[398510302,1765767035034,-150.0,0.00016288,2]
[398510303,1765767035043,-500.0,0.00016288,2]
[398510304,1765767035052,-150.0,0.00016288,2]
[398510305,1765767035061,-521.0,0.00016288,2]
[398510306,1765767035071,-500.0,0.00016288,2]
[398510307,1765767035080,-150.62895976,0.00016288,2]
[398510308,1765767035090,-150.0,0.00016288,2]
[398510309,1765767035100,-500.0,0.00016288,2]
[398510310,1765767035109,-485.27,0.00016299,2]
[398510311,1765767035119,-3789.85725352,0.00016338,2]
[398510312,1765767035128,-159.76,0.0001635,2]
[398510313,1765767035137,-9999.99,0.0001635,2]
[398510314,1765767035146,-173.21,0.0001636,2]
[398510315,1765767035155,-150.0,0.00016364,2]
[398510316,1765767035165,-500.0,0.00016364,2]
[398510317,1765767035174,-500.0,0.00016364,2]
[398510318,1765767035183,-150.0,0.00016364,2]
[398510319,1765767035192,-500.0,0.00016364,2]
[398510320,1765767035203,-1062.0,0.00016368,2]
[398510321,1765767035212,-1318.08844971,0.00016369,2]
[398510322,1765767035221,-2500.0,0.00016391,2]
[398510323,1765767035230,-1971.0,0.000164,2]
[398510324,1765767035240,-3789.85725351,0.000164,2]
[398510325,1765767035249,-500.0,0.00016415,2]
[398510326,1765767035258,-500.0,0.00016425,2]
[398510327,1765767035267,-500.0,0.00016425,2]
[398510329,1765767035276,-500.0,0.00016425,2]
[398510330,1765767035285,-456.0,0.00016425,2]
[398510331,1765767035294,-500.0,0.00016425,2]
[398510332,1765767035304,-217.87650139,0.00016425,2]
[398510333,1765767035318,-282.12349861,0.00016425,2]
[398510334,1765767035328,-206.03941413,0.00016425,2]
[398510335,1765767035337,-500.0,0.00016425,2]
[398510336,1765767035349,-200.0,0.00016425,2]
[398510337,1765767035359,-500.0,0.00016425,2]
[398510338,1765767035368,-150.55930981,0.00016425,2]
[398510339,1765767035378,-500.0,0.00016425,2]
[398510340,1765767035388,-272.0,0.00016433,2]
[398510341,1765767035399,-577.20761089,0.00016438,2]
[398510342,1765767035409,-82.0066988,0.00016438,2]
[398510343,1765767035420,-495.20091209,0.00016438,2]
[398510344,1765767035429,-577.20761089,0.00016438,2]
[398510346,1765767035439,-577.20761089,0.00016438,2]
[398510347,1765767035447,-577.20761089,0.00016438,2]
[398510348,1765767035457,-577.20761089,0.00016438,2]
[398510349,1765767035466,-577.20761089,0.00016438,2]
[398510350,1765767035475,-577.20761089,0.00016438,2]
[398510351,1765767035484,-577.20761089,0.00016438,2]
[398510352,1765767035493,-577.20761089,0.00016438,2]
[398510353,1765767035503,-577.20761089,0.00016438,2]
[398510354,1765767035512,-577.20761089,0.00016438,2]
[398510355,1765767035521,-577.20761089,0.00016438,2]
[398510356,1765767035531,-577.20761089,0.00016438,2]
[398510357,1765767035540,-577.20761089,0.00016438,2]
[398510358,1765767035550,-577.20761089,0.00016438,2]
[398510359,1765767035559,-577.20761089,0.00016438,2]
[398510360,1765767035568,-577.20761089,0.00016438,2]
[398510361,1765767035577,-577.20761089,0.00016438,2]
[398510362,1765767035587,-577.20761089,0.00016438,2]
[398510363,1765767035597,-577.20761089,0.00016438,2]
[398510364,1765767035607,-577.20761089,0.00016438,2]
[398510365,1765767035616,-577.20761089,0.00016438,2]
[398510366,1765767035626,-577.20761089,0.00016438,2]
[398510367,1765767035635,-577.20761089,0.00016438,2]
[398510368,1765767035644,-577.20761089,0.00016438,2]
[398510369,1765767035654,-577.20761089,0.00016438,2]
[398510370,1765767035664,-577.20761089,0.00016438,2]
[398510371,1765767035675,-577.20761089,0.00016438,2]
[398510372,1765767035685,-577.20761089,0.00016438,2]
[398510373,1765767035694,-577.20761089,0.00016438,2]
[398510374,1765767035704,-577.20761089,0.00016438,2]
[398510375,1765767035713,-323.41420154,0.00016438,2]
[398510376,1765767035740,-253.79340935,0.00016438,2]
[398510377,1765767035749,-243.97286209,0.00016438,2]
[398510378,1765767035762,-333.2347488,0.00016438,2]
[398510379,1765767035772,-577.20761089,0.00016438,2]
[398510380,1765767035782,-577.20761089,0.00016438,2]
[398510381,1765767035794,-577.20761089,0.00016438,2]
[398510382,1765767035805,-267.22301577,0.00016438,2]
[398510387,1765767038064,971.0,0.000157,2]
[398510389,1765767038135,-309.98459512,0.00016438,2]
[398510390,1765767038145,-577.20761089,0.00016438,2]
[398510391,1765767038154,-577.20761089,0.00016438,2]
[398510392,1765767038165,-577.20761089,0.00016438,2]
[398510393,1765767038175,-577.20761089,0.00016438,2]
[398510394,1765767038184,-577.20761089,0.00016438,2]
[398510395,1765767038193,-577.20761089,0.00016438,2]
[398510396,1765767038204,-577.20761089,0.00016438,2]
[398510397,1765767038214,-577.20761089,0.00016438,2]
[398510398,1765767038227,-577.20761089,0.00016438,2]
[398510399,1765767038237,-577.20761089,0.00016438,2]
[398510400,1765767038247,-577.20761089,0.00016438,2]
[398510401,1765767038258,-577.20761089,0.00016438,2]
[398510402,1765767038267,-577.20761089,0.00016438,2]
[398510403,1765767038277,-577.20761089,0.00016438,2]
[398510404,1765767038288,-577.20761089,0.00016438,2]
[398510405,1765767038298,-577.20761089,0.00016438,2]
[398510406,1765767038308,-577.20761089,0.00016438,2]
[398510407,1765767038318,-577.20761089,0.00016438,2]
[398510408,1765767038327,-245.07740432,0.00016438,2]
[398510409,1765767038339,-332.13020657,0.00016438,2]
[398510410,1765767038349,-577.20761089,0.00016438,2]
[398510411,1765767038358,-577.20761089,0.00016438,2]
[398510412,1765767038368,-577.20761089,0.00016438,2]
[398510413,1765767038377,-577.20761089,0.00016438,2]
[398510414,1765767038387,-577.20761089,0.00016438,2]
[398510415,1765767038397,-577.20761089,0.00016438,2]
[398510416,1765767038407,-577.20761089,0.00016438,2]
[398510417,1765767038416,-577.20761089,0.00016438,2]
[398510418,1765767038427,-577.20761089,0.00016438,2]
[398510419,1765767038437,-577.20761089,0.00016438,2]
[398510420,1765767038449,-577.20761089,0.00016438,2]
[398510421,1765767038458,-150.0,0.00016438,2]
[398510422,1765767038469,-566.71292707,0.00016438,2]
[398510423,1765767038478,-566.71292707,0.00016438,2]
[398510424,1765767038488,-566.71292707,0.00016438,2]
[398510425,1765767038497,-566.71292707,0.00016438,2]
[398510426,1765767038506,-566.71292707,0.00016438,2]
[398510427,1765767038516,-566.71292707,0.00016438,2]
[398510428,1765767038525,-566.71292707,0.00016438,2]
[398510429,1765767038535,-566.71292707,0.00016438,2]
[398510430,1765767038545,-566.71292707,0.00016438,2]
[398510431,1765767038555,-566.71292707,0.00016438,2]
[398510432,1765767038564,-566.71292707,0.00016438,2]
[398510434,1765767038574,-566.71292707,0.00016438,2]
[398510436,1765767038583,-566.71292707,0.00016438,2]
[398510437,1765767038592,-566.71292707,0.00016438,2]
[398510439,1765767038602,-566.71292707,0.00016438,2]
[398510441,1765767038611,-566.71292707,0.00016438,2]
[398510443,1765767038621,-566.71292707,0.00016438,2]
[398510445,1765767038631,-566.71292707,0.00016438,2]
[398510447,1765767038640,-566.71292707,0.00016438,2]
[398510449,1765767038650,-566.71292707,0.00016438,2]
[398510451,1765767038659,-566.71292707,0.00016438,2]
[398510453,1765767038668,-566.71292701,0.00016438,2]
[398510455,1765767038677,-642.0,0.00016445,2]
[398510457,1765767038687,-3789.85725351,0.00016463,2]
[398510459,1765767038697,-254.67076886,0.00016466,2]
[398510461,1765767038706,-1901.0,0.00016473,2]
[398510463,1765767038716,-731.82,0.00016488,2]
[398510465,1765767038725,-200.0,0.00016489,2]
[398510467,1765767038734,-250.0,0.00016489,2]
[398510469,1765767038744,-151.0,0.00016489,2]
[398510471,1765767038754,-250.0,0.00016489,2]
[398510472,1765767038763,-256.35226686,0.00016489,2]
[398510474,1765767038772,-620.0,0.00016489,2]
[398510476,1765767038781,-1000.0,0.00016489,2]
[398510478,1765767038792,-1000.0,0.00016489,2]
[398510480,1765767038803,-1000.0,0.00016489,2]
[398510483,1765767038813,-1000.0,0.00016489,2]
[398510484,1765767038822,-200.0,0.00016489,2]
[398510486,1765767038832,-1000.0,0.00016489,2]
[398510488,1765767038842,-713.46577038,0.00016489,2]
[398510491,1765767038851,-500.0,0.00016489,2]
[398510492,1765767038861,-500.0,0.00016489,2]
[398510494,1765767038871,-1000.0,0.00016489,2]
[398510496,1765767038880,-500.0,0.00016489,2]
[398510498,1765767038890,-1000.0,0.00016489,2]
[398510500,1765767038899,-500.0,0.00016489,2]
[398510502,1765767038908,-1000.0,0.00016489,2]
[398510505,1765767038918,-1000.0,0.00016489,2]
[398510506,1765767038928,-1000.0,0.00016489,2]
[398510508,1765767038938,-500.0,0.00016489,2]
[398510511,1765767038948,-1000.0,0.00016489,2]
[398510512,1765767038956,-1000.0,0.00016489,2]
[398510514,1765767038965,-500.0,0.00016489,2]
[398510516,1765767038974,-1000.0,0.00016489,2]
[398510518,1765767038983,-574.12855637,0.00016489,2]
[398510520,1765767038993,-1000.0,0.00016489,2]
[398510522,1765767039002,-500.0,0.00016489,2]
[398510524,1765767039013,-151.0,0.00016489,2]
[398510526,1765767039025,-500.0,0.00016489,2]
[398510528,1765767039034,-1000.0,0.00016489,2]
[398510530,1765767039043,-1000.0,0.00016489,2]
[398510532,1765767039053,-450.40647814,0.00016489,2]
[398510534,1765767039063,-151.0,0.00016489,2]
[398510536,1765767039072,-500.0,0.00016489,2]
[398510538,1765767039081,-299.02503047,0.00016489,2]
[398510540,1765767039091,-1000.0,0.00016489,2]
[398510554,1765767039471,-151.0,0.00016489,2]
[398510556,1765767039481,-500.0,0.00016489,2]
[398510558,1765767039490,-526.67534111,0.00016489,2]
[398510560,1765767039499,-1000.0,0.00016489,2]
[398510563,1765767039509,-151.0,0.00016489,2]
[398510565,1765767039518,-500.0,0.00016489,2]
[398510567,1765767039528,-151.0,0.00016489,2]
[398510569,1765767039538,-1000.0,0.00016489,2]
[398510571,1765767039547,-500.0,0.00016489,2]
[398510572,1765767039556,-151.0,0.00016489,2]
[398510574,1765767039565,-500.0,0.00016489,2]
[398510577,1765767039575,-1000.0,0.00016489,2]
[398510579,1765767039585,-151.0,0.00016489,2]
[398510581,1765767039594,-500.0,0.00016489,2]
[398510583,1765767039604,-151.0,0.00016489,2]
[398510585,1765767039613,-500.0,0.00016489,2]
[398510587,1765767039622,-200.0,0.00016489,2]
[398510589,1765767039632,-500.0,0.00016489,2]
[398510591,1765767039641,-151.0,0.00016489,2]
[398510593,1765767039650,-500.0,0.00016489,2]
[398510595,1765767039660,-500.0,0.00016489,2]
[398510597,1765767039669,-500.0,0.00016489,2]
[398510599,1765767039679,-151.0,0.00016489,2]
[398510601,1765767039689,-500.0,0.00016489,2]
[398510603,1765767039698,-500.0,0.00016489,2]
[398510605,1765767039708,-151.0,0.00016489,2]
[398510607,1765767039717,-500.0,0.00016489,2]
[398510609,1765767039726,-151.0,0.00016489,2]
[398510611,1765767039735,-500.0,0.00016489,2]
[398510613,1765767039744,-500.0,0.00016489,2]
[398510615,1765767039753,-500.0,0.00016489,2]
[398510617,1765767039763,-151.0,0.00016489,2]
[398510619,1765767039772,-500.0,0.00016489,2]
[398510621,1765767039782,-151.0,0.00016489,2]
[398510623,1765767039792,-151.0,0.00016489,2]
[398510625,1765767039803,-500.0,0.00016489,2]
[398510627,1765767039813,-151.0,0.00016489,2]
[398510629,1765767039822,-151.0,0.00016489,2]
[398510631,1765767039832,-500.0,0.00016489,2]
[398510633,1765767039843,-151.0,0.00016489,2]
[398510635,1765767039852,-151.0,0.00016489,2]
[398510637,1765767039862,-500.0,0.00016489,2]
[398510639,1765767039874,-251.37636031,0.00016489,2]
[398510641,1765767039883,-151.0,0.00016489,2]
[398510643,1765767039893,-151.0,0.00016489,2]
[398510645,1765767039903,-500.0,0.00016489,2]
[398510647,1765767039913,-151.0,0.00016489,2]
[398510649,1765767039923,-500.0,0.00016489,2]
[398510651,1765767039932,-151.0,0.00016489,2]
[398510653,1765767039943,-151.0,0.00016489,2]
[398510655,1765767039952,-151.0,0.00016489,2]
[398510657,1765767039961,-151.0,0.00016489,2]
[398510659,1765767039970,-151.0,0.00016489,2]
[398510661,1765767039979,-151.0,0.00016489,2]
[398510663,1765767039988,-500.0,0.00016489,2]
[398510665,1765767039997,-151.0,0.00016489,2]
[398510667,1765767040006,-151.0,0.00016489,2]
[398510669,1765767040015,-151.0,0.00016489,2]
[398510671,1765767040024,-330.76752792,0.00016489,2]
[398510674,1765767040042,-151.0,0.00016489,2]
[398510676,1765767040054,-500.0,0.00016489,2]
[398510678,1765767040064,-500.0,0.00016489,2]
[398510680,1765767040073,-522.99910463,0.00016489,2]
[398510682,1765767040083,-151.0,0.00016489,2]
[398510684,1765767040092,-500.0,0.00016499,2]
[398510686,1765767040102,-1154.8,0.00016499,2]
[398510688,1765767040111,-500.0,0.00016501,2]
[398510690,1765767040121,-150.0,0.00016501,2]
[398510692,1765767040130,-307.65783755,0.00016501,2]
[398510694,1765767040140,-150.0,0.00016501,2]
[398510696,1765767040150,-500.0,0.00016501,2]
[398510698,1765767040160,-500.0,0.00016502,2]
[398510701,1765767040170,-500.0,0.00016502,2]
[398510703,1765767040180,-1762.0,0.00016506,2]
[398510705,1765767040190,-487.0,0.00016521,2]
[398510707,1765767040199,-3789.85725351,0.00016525,2]
[398510709,1765767040209,-286.0,0.00016535,2]
[398510711,1765767040218,-400.0,0.00016539,2]
[398510713,1765767040228,-166.0,0.00016554,2]
[398510715,1765767040237,-500.0,0.00016562,2]
[398510716,1765767040248,-289.42083569,0.00016562,2]
[398510717,1765767040258,-500.0,0.00016562,2]
[398510718,1765767040268,-456.0,0.00016562,2]
[398510719,1765767040278,-240.68998264,0.00016562,2]
[398510720,1765767040289,-500.0,0.00016562,2]
[398510721,1765767040299,-500.0,0.00016562,2]
[398510722,1765767040308,-500.0,0.00016562,2]
[398510723,1765767040318,-500.0,0.00016562,2]
[398510724,1765767040328,-764.0,0.00016568,2]
[398510725,1765767040337,-150.0,0.00016575,2]
[398510726,1765767040347,-257.0,0.00016587,2]
[398510727,1765767040357,-3789.85725351,0.00016588,2]
[398510728,1765767040367,-1000.0,0.00016588,2]
[398510729,1765767040376,-774.0,0.00016601,2]
[398510730,1765767040386,-718.0,0.00016634,2]
[398510731,1765767040395,-150.0,0.00016638,2]
[398510732,1765767040404,-500.0,0.00016638,2]
[398510733,1765767040413,-252.30452045,0.00016638,2]
[398510734,1765767040423,-500.0,0.00016638,2]
[398510735,1765767040432,-926.0,0.00016638,2]
[398510736,1765767040441,-168.0,0.00016647,2]
[398510737,1765767040452,-3789.85725351,0.0001665,2]
[398510738,1765767040461,-5605.21414802,0.0001666,2]
[398510739,1765767040470,-1592.0,0.00016667,2]
[398510740,1765767040480,-1502.0,0.00016697,2]
[398510741,1765767040489,-402.35225987,0.00016699,2]
[398510742,1765767040499,-500.0,0.00016699,2]
[398510743,1765767040508,-456.0,0.00016699,2]
[398510744,1765767040518,-500.0,0.00016699,2]
[398510745,1765767040528,-500.0,0.00016699,2]
[398510746,1765767040538,-500.0,0.00016699,2]
[398510747,1765767040549,-500.0,0.00016699,2]
[398510748,1765767040558,-237.57883779,0.00016699,2]
[398510749,1765767040569,-150.0,0.00016699,2]
[398510750,1765767040579,-500.0,0.00016699,2]
[398510751,1765767040590,-150.0,0.00016699,2]
[398510752,1765767040599,-150.0,0.00016699,2]
[398510753,1765767040609,-254.27328659,0.00016699,2]
[398510754,1765767040619,-202.36819027,0.00016699,2]
[398510755,1765767040629,-1000.0,0.000167,2]
[398510756,1765767040639,-176.82304004,0.00016709,2]
[398510757,1765767040648,-200.0,0.00016712,2]
[398510758,1765767040658,-3789.85725351,0.00016713,2]